[Event "Early-Titled-Tuesday-Blitz-April-16-2024"]
[Site "Chess.com"]
[Date "2024.04.16"]
[Round "7"]
[White "Oleksandr_Bortnyk"]
[Black "David_Arutinian"]
[Result "1-0"]
[WhiteElo "3044"]
[BlackElo "2836"]
[TimeControl "180+1"]
[EndTime "9:21:18 PDT"]
[Termination "Oleksandr_Bortnyk won by resignation"]

1. e4 {[%clk 0:03:00.9]} 1... c6 {[%clk 0:02:59.5]} 2. c4 {[%clk 0:02:55.4]}
2... d5 {[%clk 0:03:00.4]} 3. cxd5 {[%clk 0:02:56.3]} 3... cxd5 {[%clk
0:02:57.9]} 4. exd5 {[%clk 0:02:57.2]} 4... Nf6 {[%clk 0:02:57.6]} 5. Qa4+
{[%clk 0:02:57.6]} 5... Nbd7 {[%clk 0:02:54.6]} 6. Nc3 {[%clk 0:02:57.7]} 6...
g6 {[%clk 0:02:54.4]} 7. Bc4 {[%clk 0:02:58.4]} 7... Bg7 {[%clk 0:02:55]} 8. d3
{[%clk 0:02:59.2]} 8... O-O {[%clk 0:02:54.2]} 9. Nf3 {[%clk 0:02:59.7]} 9... a6
{[%clk 0:02:54.3]} 10. Qa3 {[%clk 0:03:00.3]} 10... b6 {[%clk 0:02:52.3]} 11.
O-O {[%clk 0:02:59.5]} 11... Bb7 {[%clk 0:02:52.8]} 12. Re1 {[%clk 0:03:00]}
12... b5 {[%clk 0:02:51.6]} 13. Bb3 {[%clk 0:03:00.1]} 13... Re8 {[%clk
0:02:46.8]} 14. Be3 {[%clk 0:03:00.2]} 14... Nb6 {[%clk 0:02:44.9]} 15. Bxb6
{[%clk 0:03:00.4]} 15... Qxb6 {[%clk 0:02:45.8]} 16. Qb4 {[%clk 0:03:01.2]}
16... Qd6 {[%clk 0:02:42.9]} 17. Qxd6 {[%clk 0:03:01.3]} 17... exd6 {[%clk
0:02:43.1]} 18. a3 {[%clk 0:03:02.1]} 18... Rxe1+ {[%clk 0:02:41]} 19. Rxe1
{[%clk 0:03:03]} 19... Re8 {[%clk 0:02:41.4]} 20. Kf1 {[%clk 0:03:01.9]} 20...
Rxe1+ {[%clk 0:02:40.9]} 21. Kxe1 {[%clk 0:03:02.8]} 21... Nd7 {[%clk
0:02:41.4]} 22. d4 {[%clk 0:03:03.3]} 22... Kf8 {[%clk 0:02:40.2]} 23. Ke2
{[%clk 0:03:02.3]} 23... Nb6 {[%clk 0:02:40.4]} 24. Kd3 {[%clk 0:03:02.2]} 24...
Ke7 {[%clk 0:02:40.8]} 25. h4 {[%clk 0:02:59.2]} 25... h5 {[%clk 0:02:37.7]} 26.
g3 {[%clk 0:02:59.2]} 26... Bh6 {[%clk 0:02:37.9]} 27. Ne1 {[%clk 0:02:56]}
27... Nd7 {[%clk 0:02:37.8]} 28. f4 {[%clk 0:02:50.7]} 28... Nf6 {[%clk
0:02:36.9]} 29. Nc2 {[%clk 0:02:50.1]} 29... Kd7 {[%clk 0:02:33.6]} 30. Ne3
{[%clk 0:02:22.3]} 30... Bc8 {[%clk 0:02:31.6]} 31. a4 {[%clk 0:02:22]} 31...
bxa4 {[%clk 0:02:31.5]} 32. Bxa4+ {[%clk 0:02:21.5]} 32... Ke7 {[%clk
0:02:28.8]} 33. b4 {[%clk 0:02:19.1]} 33... Ng4 {[%clk 0:02:24.4]} 34. Nxg4
{[%clk 0:02:16]} 34... Bxg4 {[%clk 0:02:25.3]} 35. Bc6 {[%clk 0:02:15.5]} 35...
Bf5+ {[%clk 0:02:21.8]} 36. Ke3 {[%clk 0:01:51.6]} 36... Bc8 {[%clk 0:02:06.4]}
37. Ne4 {[%clk 0:01:43.5]} 37... Bg7 {[%clk 0:02:02.7]} 38. Kd3 {[%clk
0:01:27.6]} 38... Bh3 {[%clk 0:01:45.2]} 39. Nd2 {[%clk 0:01:10.7]} 39... Bc8
{[%clk 0:01:44.2]} 40. Nc4 {[%clk 0:01:08.8]} 40... Bf6 {[%clk 0:01:03.3]} 41.
Ke3 {[%clk 0:01:05.9]} 41... Bg7 {[%clk 0:00:48.3]} 42. Na5 {[%clk 0:00:46]}
42... Kd8 {[%clk 0:00:41.7]} 43. Kd3 {[%clk 0:00:43.8]} 43... Bh3 {[%clk
0:00:38.4]} 44. Kc3 {[%clk 0:00:41.9]} 44... Bf1 {[%clk 0:00:35.2]} 45. Nc4
{[%clk 0:00:40.5]} 45... Ke7 {[%clk 0:00:33.4]} 46. Bb7 {[%clk 0:00:39.7]} 46...
Bg2 {[%clk 0:00:33.6]} 47. Ne3 {[%clk 0:00:39.4]} 47... Be4 {[%clk 0:00:30.7]}
48. Bxa6 {[%clk 0:00:39.6]} 48... f6 {[%clk 0:00:31.2]} 49. b5 {[%clk 0:00:35]}
49... Kd8 {[%clk 0:00:30.8]} 50. b6 {[%clk 0:00:35.6]} 50... g5 {[%clk
0:00:30.4]} 51. hxg5 {[%clk 0:00:32.5]} 51... fxg5 {[%clk 0:00:31.3]} 52. fxg5
{[%clk 0:00:33.4]} 52... Bf8 {[%clk 0:00:25.9]} 53. Bd3 {[%clk 0:00:33.3]} 53...
Bf3 {[%clk 0:00:25.6]} 54. Bf5 {[%clk 0:00:33.6]} 54... Be7 {[%clk 0:00:25.4]}
55. g6 {[%clk 0:00:33.6]} 55... Bf6 {[%clk 0:00:25]} 56. Kd3 {[%clk 0:00:29.2]}
56... Bg7 {[%clk 0:00:23.7]} 57. Be4 {[%clk 0:00:28.4]} 57... Bg4 {[%clk
0:00:23.2]} 58. Nxg4 {[%clk 0:00:28.6]} 58... hxg4 {[%clk 0:00:24.1]} 59. Bf5
{[%clk 0:00:29.1]} 1-0

[Event "Early-Titled-Tuesday-Blitz-April-16-2024"]
[Site "Chess.com"]
[Date "2024.04.16"]
[Round "7"]
[White "imdvb6307"]
[Black "Aleksandar-Topalov"]
[Result "1-0"]
[WhiteElo "2513"]
[BlackElo "2343"]
[TimeControl "180+1"]
[EndTime "9:21:18 PDT"]
[Termination "imdvb6307 won on time"]

1. d4 {[%clk 0:03:00.9]} 1... e6 {[%clk 0:02:59.4]} 2. Nf3 {[%clk 0:02:58]} 2...
f5 {[%clk 0:02:59.2]} 3. Bf4 {[%clk 0:02:53.3]} 3... Nf6 {[%clk 0:02:57.9]} 4.
e3 {[%clk 0:02:53.4]} 4... Be7 {[%clk 0:02:57.1]} 5. c4 {[%clk 0:02:49.4]} 5...
O-O {[%clk 0:02:54.6]} 6. Nc3 {[%clk 0:02:49.1]} 6... b6 {[%clk 0:02:48.1]} 7.
Be2 {[%clk 0:02:48.9]} 7... Bb7 {[%clk 0:02:47.8]} 8. h3 {[%clk 0:02:44.3]} 8...
Ne4 {[%clk 0:02:47.6]} 9. Nxe4 {[%clk 0:02:39.1]} 9... Bxe4 {[%clk 0:02:45.8]}
10. O-O {[%clk 0:02:32.4]} 10... Bf6 {[%clk 0:02:43.1]} 11. Be5 {[%clk
0:02:30.2]} 11... Bxf3 {[%clk 0:02:38.4]} 12. Bxf3 {[%clk 0:02:28.2]} 12... c6
{[%clk 0:02:34.2]} 13. Bd6 {[%clk 0:02:22.7]} 13... Be7 {[%clk 0:02:31.8]} 14.
Bxe7 {[%clk 0:02:22.7]} 14... Qxe7 {[%clk 0:02:31.4]} 15. d5 {[%clk 0:02:23.2]}
15... e5 {[%clk 0:02:14.7]} 16. e4 {[%clk 0:01:55.9]} 16... fxe4 {[%clk
0:02:11.9]} 17. Bxe4 {[%clk 0:01:55.1]} 17... Qc5 {[%clk 0:01:56.9]} 18. Qd3
{[%clk 0:01:47.4]} 18... h6 {[%clk 0:01:55.9]} 19. a3 {[%clk 0:01:39.3]} 19...
a5 {[%clk 0:01:55.7]} 20. b4 {[%clk 0:01:39]} 20... Qd6 {[%clk 0:01:44.3]} 21.
Qc3 {[%clk 0:01:28.1]} 21... axb4 {[%clk 0:01:38]} 22. axb4 {[%clk 0:01:25.1]}
22... Na6 {[%clk 0:01:36.9]} 23. dxc6 {[%clk 0:01:16]} 23... dxc6 {[%clk
0:01:33]} 24. b5 {[%clk 0:01:15.9]} 24... Nb4 {[%clk 0:01:18.9]} 25. Rab1 {[%clk
0:01:06.7]} 25... Ra4 {[%clk 0:01:11.9]} 26. bxc6 {[%clk 0:01:06.9]} 26... Nxc6
{[%clk 0:00:54.6]} 27. Rxb6 {[%clk 0:00:51.5]} 27... Qd4 {[%clk 0:00:54.4]} 28.
Bd5+ {[%clk 0:00:39.4]} 28... Kh8 {[%clk 0:00:49.8]} 29. Qxd4 {[%clk 0:00:37.6]}
29... Nxd4 {[%clk 0:00:48.7]} 30. Rb2 {[%clk 0:00:34]} 30... e4 {[%clk
0:00:31.1]} 31. Re1 {[%clk 0:00:33.4]} 31... Re8 {[%clk 0:00:19.9]} 32. Rxe4
{[%clk 0:00:33.2]} 32... Rxe4 {[%clk 0:00:18.7]} 33. Bxe4 {[%clk 0:00:33.5]}
33... g5 {[%clk 0:00:15]} 34. Rb6 {[%clk 0:00:31.3]} 34... Rxc4 {[%clk
0:00:13.4]} 35. Rxh6+ {[%clk 0:00:31.1]} 35... Kg7 {[%clk 0:00:13.3]} 36. Rg6+
{[%clk 0:00:31.4]} 36... Kf7 {[%clk 0:00:13.5]} 37. Bd5+ {[%clk 0:00:25.1]}
37... Kxg6 {[%clk 0:00:12.3]} 38. Bxc4 {[%clk 0:00:25.5]} 38... Kf5 {[%clk
0:00:12]} 39. f3 {[%clk 0:00:25.3]} 39... Ke5 {[%clk 0:00:06.8]} 40. Kf2 {[%clk
0:00:24.7]} 40... Nf5 {[%clk 0:00:06.9]} 41. Bd3 {[%clk 0:00:23.6]} 41... Nd4
{[%clk 0:00:04.3]} 42. Ke3 {[%clk 0:00:22.2]} 42... Ne6 {[%clk 0:00:03.8]} 43.
g3 {[%clk 0:00:22.1]} 43... Nc5 {[%clk 0:00:01.6]} 44. Bc4 {[%clk 0:00:21.8]}
1-0

[Event "Early-Titled-Tuesday-Blitz-April-16-2024"]
[Site "Chess.com"]
[Date "2024.04.16"]
[Round "7"]
[White "nihalsarin"]
[Black "BardArtem"]
[Result "1-0"]
[WhiteElo "3162"]
[BlackElo "2853"]
[TimeControl "180+1"]
[EndTime "9:21:24 PDT"]
[Termination "nihalsarin won by resignation"]

1. d4 {[%clk 0:03:00.9]} 1... d5 {[%clk 0:02:52.3]} 2. c4 {[%clk 0:03:00.4]}
2... dxc4 {[%clk 0:02:50.8]} 3. Nf3 {[%clk 0:02:59.2]} 3... Nf6 {[%clk
0:02:44.3]} 4. e3 {[%clk 0:02:59.6]} 4... e6 {[%clk 0:02:44.7]} 5. Bxc4 {[%clk
0:02:59.5]} 5... c5 {[%clk 0:02:45.3]} 6. O-O {[%clk 0:03:00.1]} 6... Nc6 {[%clk
0:02:44.7]} 7. Nc3 {[%clk 0:02:44.7]} 7... cxd4 {[%clk 0:02:44.5]} 8. exd4
{[%clk 0:02:45.6]} 8... Be7 {[%clk 0:02:44.7]} 9. Qe2 {[%clk 0:02:38.1]} 9...
O-O {[%clk 0:02:43]} 10. Rd1 {[%clk 0:02:37.1]} 10... Nb4 {[%clk 0:02:43.2]} 11.
Bg5 {[%clk 0:02:24.6]} 11... h6 {[%clk 0:02:42.5]} 12. Bh4 {[%clk 0:02:19.1]}
12... Bd7 {[%clk 0:02:42.1]} 13. a3 {[%clk 0:02:09.7]} 13... Nbd5 {[%clk
0:02:17.5]} 14. Nxd5 {[%clk 0:02:07.9]} 14... exd5 {[%clk 0:01:59.5]} 15. Bd3
{[%clk 0:02:08]} 15... Bg4 {[%clk 0:01:51.3]} 16. h3 {[%clk 0:02:07.7]} 16...
Bxf3 {[%clk 0:01:50.9]} 17. Qxf3 {[%clk 0:02:08.6]} 17... Ne4 {[%clk 0:01:47.7]}
18. Bxe7 {[%clk 0:02:07.6]} 18... Qxe7 {[%clk 0:01:48.6]} 19. Re1 {[%clk
0:02:08.1]} 19... Rae8 {[%clk 0:01:43.6]} 20. Qf5 {[%clk 0:01:49]} 20... Qg5
{[%clk 0:01:31.9]} 21. Qxg5 {[%clk 0:01:41.6]} 21... Nxg5 {[%clk 0:01:30.6]} 22.
Re5 {[%clk 0:01:14.8]} 22... Ne6 {[%clk 0:01:19.8]} 23. Rd1 {[%clk 0:01:13.5]}
23... Rd8 {[%clk 0:01:19.6]} 24. Bf5 {[%clk 0:01:13.5]} 24... Nc7 {[%clk
0:00:53]} 25. a4 {[%clk 0:00:38.2]} 25... Rfe8 {[%clk 0:00:40]} 26. Rc1 {[%clk
0:00:35.2]} 26... Na6 {[%clk 0:00:17.3]} 27. f4 {[%clk 0:00:16.9]} 27... Kf8
{[%clk 0:00:14.5]} 28. Kf2 {[%clk 0:00:17.2]} 28... g6 {[%clk 0:00:11.8]} 29.
Bb1 {[%clk 0:00:13.9]} 29... Rxe5 {[%clk 0:00:06.7]} 30. fxe5 {[%clk 0:00:14.2]}
30... Ke7 {[%clk 0:00:06.7]} 31. Ke3 {[%clk 0:00:13.9]} 31... Rd7 {[%clk
0:00:05.7]} 32. Rc8 {[%clk 0:00:09.7]} 32... Rc7 {[%clk 0:00:06.3]} 33. Ra8
{[%clk 0:00:09.8]} 33... Rc1 {[%clk 0:00:05.6]} 34. Bd3 {[%clk 0:00:09.1]} 34...
Rg1 {[%clk 0:00:05.2]} 35. Rxa7 {[%clk 0:00:07.9]} 35... Nb4 {[%clk 0:00:04.7]}
36. Rxb7+ {[%clk 0:00:08.4]} 36... Ke6 {[%clk 0:00:03.9]} 37. Rxb4 {[%clk
0:00:09.3]} 37... Rxg2 {[%clk 0:00:04.2]} 38. a5 {[%clk 0:00:09.9]} 38... Rxb2
{[%clk 0:00:03.7]} 39. Rxb2 {[%clk 0:00:09.8]} 1-0

[Event "Early-Titled-Tuesday-Blitz-April-16-2024"]
[Site "Chess.com"]
[Date "2024.04.16"]
[Round "7"]
[White "esrosenberg"]
[Black "H3nriqueTV"]
[Result "1-0"]
[WhiteElo "2382"]
[BlackElo "2288"]
[TimeControl "180+1"]
[EndTime "9:21:24 PDT"]
[Termination "esrosenberg won by resignation"]

1. d4 {[%clk 0:03:00.9]} 1... d5 {[%clk 0:02:14.1]} 2. Nf3 {[%clk 0:02:55]} 2...
c6 {[%clk 0:02:12.5]} 3. g3 {[%clk 0:02:53.4]} 3... Bf5 {[%clk 0:02:12.4]} 4.
Bg2 {[%clk 0:02:52.5]} 4... e6 {[%clk 0:02:13]} 5. c4 {[%clk 0:02:51.9]} 5...
Nf6 {[%clk 0:02:13.5]} 6. Qb3 {[%clk 0:02:48]} 6... b6 {[%clk 0:02:13.2]} 7. Nc3
{[%clk 0:02:44.9]} 7... Nbd7 {[%clk 0:02:13.6]} 8. Nh4 {[%clk 0:02:31.1]} 8...
Bg4 {[%clk 0:02:13.6]} 9. h3 {[%clk 0:02:28.8]} 9... Bh5 {[%clk 0:02:13.8]} 10.
g4 {[%clk 0:02:29.1]} 10... Bg6 {[%clk 0:02:14]} 11. Nxg6 {[%clk 0:02:25]} 11...
hxg6 {[%clk 0:02:14.9]} 12. Bf4 {[%clk 0:02:23]} 12... Be7 {[%clk 0:02:13.2]}
13. O-O-O {[%clk 0:02:19.5]} 13... a5 {[%clk 0:01:46.8]} 14. e4 {[%clk
0:02:12.2]} 14... dxe4 {[%clk 0:01:32.1]} 15. Nxe4 {[%clk 0:02:10.8]} 15... Nxe4
{[%clk 0:01:32.5]} 16. Bxe4 {[%clk 0:02:10.7]} 16... Qc8 {[%clk 0:01:33.2]} 17.
Kb1 {[%clk 0:02:03.5]} 17... a4 {[%clk 0:01:32.8]} 18. Qc2 {[%clk 0:01:59.1]}
18... Ra5 {[%clk 0:01:21.4]} 19. Bxg6 {[%clk 0:01:50.7]} 19... b5 {[%clk
0:00:38.1]} 20. c5 {[%clk 0:01:34.2]} 20... b4 {[%clk 0:00:34.1]} 21. Rde1
{[%clk 0:01:22.4]} 21... O-O {[%clk 0:00:20]} 22. Bh7+ {[%clk 0:01:19]} 22...
Kh8 {[%clk 0:00:20]} 23. Bd3 {[%clk 0:01:10]} 23... b3 {[%clk 0:00:20.3]} 24.
Qe2 {[%clk 0:01:09.7]} 24... Bf6 {[%clk 0:00:19.6]} 25. Qe4 {[%clk 0:01:06.6]}
25... g6 {[%clk 0:00:19.4]} 26. Bd6 {[%clk 0:00:54.4]} 26... bxa2+ {[%clk
0:00:20.3]} 27. Ka1 {[%clk 0:00:51.3]} 27... a3 {[%clk 0:00:20.9]} 28. b4 {[%clk
0:00:49.9]} 28... Qb7 {[%clk 0:00:17.5]} 29. Re2 {[%clk 0:00:28.8]} 29... Qxb4
{[%clk 0:00:17.4]} 30. Kxa2 {[%clk 0:00:21.1]} 30... Nxc5 {[%clk 0:00:02.2]} 31.
dxc5 {[%clk 0:00:17.1]} 31... Qc3 {[%clk 0:00:02.8]} 32. Qc4 {[%clk 0:00:12.2]}
32... Qb2+ {[%clk 0:00:03.1]} 33. Rxb2 {[%clk 0:00:12.1]} 33... axb2+ {[%clk
0:00:04]} 34. Kb3 {[%clk 0:00:11.5]} 34... Rfa8 {[%clk 0:00:04]} 35. g5 {[%clk
0:00:08]} 35... Bg7 {[%clk 0:00:04]} 36. Rb1 {[%clk 0:00:05.5]} 36... Ra3+
{[%clk 0:00:02.5]} 37. Kc2 {[%clk 0:00:05.5]} 37... Rc3+ {[%clk 0:00:01.7]} 38.
Qxc3 {[%clk 0:00:05.1]} 38... Bxc3 {[%clk 0:00:02.6]} 39. Kxc3 {[%clk
0:00:05.2]} 39... Ra3+ {[%clk 0:00:03.1]} 40. Kd2 {[%clk 0:00:04.6]} 40... Rb3
{[%clk 0:00:03]} 41. Be5+ {[%clk 0:00:04.5]} 41... Kg8 {[%clk 0:00:03]} 42. Rxb2
{[%clk 0:00:05.3]} 42... Ra3 {[%clk 0:00:03.3]} 1-0

[Event "Early-Titled-Tuesday-Blitz-April-16-2024"]
[Site "Chess.com"]
[Date "2024.04.16"]
[Round "7"]
[White "IshviAggarwal"]
[Black "Chess4always"]
[Result "1-0"]
[WhiteElo "2136"]
[BlackElo "2000"]
[TimeControl "180+1"]
[EndTime "9:21:27 PDT"]
[Termination "IshviAggarwal won by resignation"]

1. Nf3 {[%clk 0:03:00.9]} 1... c6 {[%clk 0:02:59.4]} 2. d4 {[%clk 0:02:57.4]}
2... d5 {[%clk 0:02:58.8]} 3. g3 {[%clk 0:02:58]} 3... Bf5 {[%clk 0:02:57.7]} 4.
Bg2 {[%clk 0:02:58.4]} 4... Nd7 {[%clk 0:02:58.3]} 5. O-O {[%clk 0:02:59]} 5...
Ngf6 {[%clk 0:02:59]} 6. c4 {[%clk 0:02:59.6]} 6... h6 {[%clk 0:02:59.1]} 7. Nc3
{[%clk 0:03:00.1]} 7... e6 {[%clk 0:02:59.6]} 8. Nd2 {[%clk 0:03:00.7]} 8... Be7
{[%clk 0:02:59.3]} 9. e4 {[%clk 0:02:59.7]} 9... dxe4 {[%clk 0:03:00.2]} 10.
Ndxe4 {[%clk 0:03:00]} 10... Nxe4 {[%clk 0:03:00.8]} 11. Nxe4 {[%clk 0:03:00.7]}
11... Nf6 {[%clk 0:02:58.7]} 12. Nc3 {[%clk 0:03:01.3]} 12... O-O {[%clk
0:02:57]} 13. h3 {[%clk 0:03:01.9]} 13... Rc8 {[%clk 0:02:56.4]} 14. Be3 {[%clk
0:03:02.4]} 14... Qc7 {[%clk 0:02:55.3]} 15. Qb3 {[%clk 0:02:57]} 15... Rfd8
{[%clk 0:02:51.7]} 16. Rfd1 {[%clk 0:02:54.9]} 16... a6 {[%clk 0:02:47.9]} 17.
a4 {[%clk 0:02:43.1]} 17... Bf8 {[%clk 0:02:33.8]} 18. a5 {[%clk 0:02:38]} 18...
Rd7 {[%clk 0:02:29.6]} 19. Na4 {[%clk 0:02:36.1]} 19... Rcd8 {[%clk 0:02:28.8]}
20. Nb6 {[%clk 0:02:30.4]} 20... Re7 {[%clk 0:02:28.1]} 21. Bf4 {[%clk
0:02:27.7]} 21... e5 {[%clk 0:02:24.1]} 22. Bxe5 {[%clk 0:02:22.7]} 22... Rxe5
{[%clk 0:02:19]} 23. dxe5 {[%clk 0:02:23.6]} 23... Rxd1+ {[%clk 0:02:18.7]} 24.
Rxd1 {[%clk 0:02:24.2]} 24... Ne4 {[%clk 0:02:17.4]} 25. g4 {[%clk 0:02:16.9]}
25... Bg6 {[%clk 0:02:14.7]} 26. Qe3 {[%clk 0:02:13.2]} 26... Bc5 {[%clk
0:02:05.4]} 27. Qf4 {[%clk 0:01:35]} 27... Nxf2 {[%clk 0:01:44.9]} 28. Rd7
{[%clk 0:01:33.6]} 28... Qxd7 {[%clk 0:01:24.7]} 29. Nxd7 {[%clk 0:01:33.2]}
29... Nxh3+ {[%clk 0:01:25.2]} 30. Kh2 {[%clk 0:01:32.5]} 30... Nxf4 {[%clk
0:01:25.6]} 31. Nxc5 {[%clk 0:01:33.1]} 31... Ne6 {[%clk 0:01:01.5]} 32. Nxb7
{[%clk 0:01:28.6]} 32... Bd3 {[%clk 0:01:01.1]} 33. Nd6 {[%clk 0:01:18.7]} 33...
c5 {[%clk 0:00:56.7]} 34. Bb7 {[%clk 0:01:16.8]} 34... Nc7 {[%clk 0:00:52.5]}
35. Ne4 {[%clk 0:00:48.4]} 35... Bxe4 {[%clk 0:00:47.4]} 36. Bxe4 {[%clk
0:00:48]} 36... Kf8 {[%clk 0:00:48.3]} 37. Kg3 {[%clk 0:00:44.1]} 37... Ke7
{[%clk 0:00:48.8]} 38. Bf5 {[%clk 0:00:43.4]} 38... g6 {[%clk 0:00:44.5]} 39.
Bc8 {[%clk 0:00:43.6]} 39... Kd8 {[%clk 0:00:42.6]} 40. Bb7 {[%clk 0:00:43.6]}
40... Ke7 {[%clk 0:00:37.6]} 41. Kf4 {[%clk 0:00:40]} 41... f6 {[%clk
0:00:37.7]} 42. exf6+ {[%clk 0:00:39.6]} 42... Kxf6 {[%clk 0:00:38.6]} 43. b3
{[%clk 0:00:29.5]} 43... h5 {[%clk 0:00:36.1]} 44. gxh5 {[%clk 0:00:28.9]} 44...
gxh5 {[%clk 0:00:37]} 45. Bc8 {[%clk 0:00:26.1]} 45... Kg6 {[%clk 0:00:26.2]}
46. Ke5 {[%clk 0:00:26]} 46... h4 {[%clk 0:00:21.1]} 47. Kd6 {[%clk 0:00:25.8]}
47... Ne8+ {[%clk 0:00:19.2]} 48. Kxc5 {[%clk 0:00:26]} 48... Nf6 {[%clk
0:00:19.7]} 49. Bxa6 {[%clk 0:00:20.7]} 49... h3 {[%clk 0:00:18]} 50. Bb7 {[%clk
0:00:21]} 50... Kf5 {[%clk 0:00:18.4]} 51. a6 {[%clk 0:00:20.5]} 51... Ne4+
{[%clk 0:00:18.9]} 52. Bxe4+ {[%clk 0:00:20.1]} 52... Kxe4 {[%clk 0:00:19]} 53.
a7 {[%clk 0:00:21]} 53... h2 {[%clk 0:00:19.6]} 54. a8=Q+ {[%clk 0:00:21]} 1-0

[Event "Early-Titled-Tuesday-Blitz-April-16-2024"]
[Site "Chess.com"]
[Date "2024.04.16"]
[Round "7"]
[White "PositionalPanther"]
[Black "XDPS"]
[Result "0-1"]
[WhiteElo "2522"]
[BlackElo "2841"]
[TimeControl "180+1"]
[EndTime "9:21:29 PDT"]
[Termination "XDPS won by resignation"]

1. Nf3 {[%clk 0:03:00.9]} 1... g6 {[%clk 0:02:59.1]} 2. g3 {[%clk 0:03:00.6]}
2... Bg7 {[%clk 0:02:59.8]} 3. Bg2 {[%clk 0:03:01]} 3... e5 {[%clk 0:03:00.5]}
4. d3 {[%clk 0:02:58.2]} 4... d5 {[%clk 0:03:00.6]} 5. O-O {[%clk 0:02:58.5]}
5... Ne7 {[%clk 0:03:01.3]} 6. e4 {[%clk 0:02:58.5]} 6... Nbc6 {[%clk
0:03:00.7]} 7. Nc3 {[%clk 0:02:57.3]} 7... d4 {[%clk 0:03:00.9]} 8. Ne2 {[%clk
0:02:57.1]} 8... O-O {[%clk 0:03:01]} 9. Ne1 {[%clk 0:02:52.9]} 9... f5 {[%clk
0:02:59.1]} 10. exf5 {[%clk 0:02:51.2]} 10... Bxf5 {[%clk 0:02:57.7]} 11. f4
{[%clk 0:02:43]} 11... Qd7 {[%clk 0:02:57.1]} 12. Nf3 {[%clk 0:02:41.1]} 12...
e4 {[%clk 0:02:53.5]} 13. dxe4 {[%clk 0:02:35.5]} 13... Bxe4 {[%clk 0:02:53.9]}
14. Ne5 {[%clk 0:02:31.2]} 14... Qd5 {[%clk 0:02:52]} 15. Bxe4 {[%clk 0:02:30]}
15... Qxe4 {[%clk 0:02:49.3]} 16. Qd3 {[%clk 0:02:27.2]} 16... Qxd3 {[%clk
0:02:44.1]} 17. Nxd3 {[%clk 0:02:28.1]} 17... Nf5 {[%clk 0:02:31.8]} 18. Bd2
{[%clk 0:02:27.8]} 18... Rfe8 {[%clk 0:02:27.5]} 19. Rae1 {[%clk 0:02:27.6]}
19... b6 {[%clk 0:02:26.4]} 20. Nec1 {[%clk 0:02:25.7]} 20... Nd6 {[%clk
0:02:24.8]} 21. Rxe8+ {[%clk 0:02:20.6]} 21... Rxe8 {[%clk 0:02:24.4]} 22. Re1
{[%clk 0:02:21.5]} 22... Rxe1+ {[%clk 0:02:22.8]} 23. Bxe1 {[%clk 0:02:18.5]}
23... Kf7 {[%clk 0:02:22.8]} 24. Kg2 {[%clk 0:02:18.5]} 24... Ke6 {[%clk
0:02:21.9]} 25. Nb3 {[%clk 0:02:11.1]} 25... Kd5 {[%clk 0:02:20.9]} 26. Nd2
{[%clk 0:02:10.5]} 26... a5 {[%clk 0:01:48.1]} 27. g4 {[%clk 0:02:02.1]} 27...
Nd8 {[%clk 0:01:36.9]} 28. Bh4 {[%clk 0:02:00.3]} 28... Ne6 {[%clk 0:01:36.9]}
29. Kf3 {[%clk 0:01:49.1]} 29... c5 {[%clk 0:01:36.3]} 30. Be7 {[%clk 0:01:47]}
30... c4 {[%clk 0:01:27.8]} 31. Nf2 {[%clk 0:01:39.4]} 31... Nc8 {[%clk
0:01:25.7]} 32. Bh4 {[%clk 0:01:36.8]} 32... b5 {[%clk 0:01:14.3]} 33. Nfe4
{[%clk 0:01:28.6]} 33... a4 {[%clk 0:01:04.4]} 34. f5 {[%clk 0:01:28.4]} 34...
gxf5 {[%clk 0:01:04.3]} 35. gxf5 {[%clk 0:01:29.3]} 35... Nf8 {[%clk 0:00:50.8]}
36. b3 {[%clk 0:01:06.7]} 36... Nd7 {[%clk 0:00:45.5]} 37. f6 {[%clk 0:00:43.8]}
37... Bh6 {[%clk 0:00:45.8]} 38. f7 {[%clk 0:00:43.4]} 38... Ne5+ {[%clk
0:00:45.4]} 39. Ke2 {[%clk 0:00:40.4]} 39... Nxf7 {[%clk 0:00:46.3]} 40. Nf6+
{[%clk 0:00:39.9]} 40... Ke6 {[%clk 0:00:35.6]} 41. bxc4 {[%clk 0:00:31.6]}
41... Bxd2 {[%clk 0:00:35.1]} 42. Kxd2 {[%clk 0:00:26.9]} 42... bxc4 {[%clk
0:00:35.1]} 43. Nxh7 {[%clk 0:00:27.4]} 43... Ncd6 {[%clk 0:00:34.4]} 44. Ng5+
{[%clk 0:00:27]} 44... Nxg5 {[%clk 0:00:34.6]} 45. Bxg5 {[%clk 0:00:27.9]} 45...
Ne4+ {[%clk 0:00:35.3]} 46. Kc1 {[%clk 0:00:16.1]} 46... Nxg5 {[%clk 0:00:36.2]}
47. Kb2 {[%clk 0:00:16.7]} 47... Nh3 {[%clk 0:00:16.1]} 48. Ka3 {[%clk
0:00:16.4]} 48... c3 {[%clk 0:00:16.3]} 49. Kxa4 {[%clk 0:00:15.8]} 49... d3
{[%clk 0:00:16.6]} 50. Kb3 {[%clk 0:00:14.5]} 50... d2 {[%clk 0:00:16.9]} 0-1